fUSD/lending_fUSD_20250103
["ID","MTS","AMOUNT","RATE_DAILY","PERIOD"]
[347559030,1735918233482,-500.0,9.25e-05,2]
[347559031,1735918233491,-500.0,9.25e-05,2]
[347559032,1735918233501,-500.0,9.25e-05,2]
[347559033,1735918233511,-634.58625739,9.25e-05,2]
[347559034,1735918233521,-500.0,9.25e-05,2]
[347559035,1735918233531,-500.0,9.25e-05,2]
[347559036,1735918233540,-500.0,9.25e-05,2]
[347559037,1735918233551,-599.15,9.25e-05,2]
[347559038,1735918233560,-500.0,9.25e-05,2]
[347559039,1735918233570,-500.0,9.25e-05,2]
[347559041,1735918233580,-500.0,9.25e-05,2]
[347559043,1735918233590,-559.57,9.25e-05,2]
[347559045,1735918233599,-500.0,9.25e-05,2]
[347559047,1735918233610,-538.32,9.25e-05,2]
[347559048,1735918233620,-500.0,9.25e-05,2]
[347559050,1735918233629,-1126.27,9.25e-05,2]
[347559052,1735918233639,-1522.13,9.25e-05,2]
[347559054,1735918233649,-500.0,9.25e-05,2]
[347559056,1735918233660,-3011.91,9.25e-05,2]
[347559058,1735918233670,-2203.11,9.25e-05,2]
[347559060,1735918233682,-557.13,9.25e-05,2]
[347559062,1735918233692,-1186.59,9.25e-05,2]
[347559064,1735918233702,-1073.02,9.25e-05,2]
[347559066,1735918233712,-500.0,9.25e-05,2]
[347559068,1735918233722,-750.17897989,9.299e-05,2]
[347559069,1735918233732,-532.55,9.319e-05,2]
[347559071,1735918233743,-500.0,9.319e-05,2]
[347559073,1735918233752,-500.0,9.319e-05,2]
[347559075,1735918233763,-1141.48,9.319e-05,2]
[347559077,1735918233772,-521.33,9.319e-05,2]
[347559079,1735918233783,-500.0,9.319e-05,2]
[347559081,1735918233793,-500.0,9.319e-05,2]
[347559083,1735918233803,-694.12,9.319e-05,2]
[347559085,1735918233813,-1989.5,9.319e-05,2]
[347559087,1735918233823,-500.0,9.319e-05,2]
[347559089,1735918233833,-1261.61,9.319e-05,2]
[347559091,1735918233842,-2036.93,9.319e-05,2]
[347559093,1735918233853,-707.35,9.319e-05,2]
[347559095,1735918233863,-965.65,9.319e-05,2]
[347559097,1735918233873,-1012.96,9.319e-05,2]
[347559099,1735918233883,-3672.18,9.319e-05,2]
[347559101,1735918233894,-787.91,9.319e-05,2]
[347559103,1735918233904,-500.0,9.319e-05,2]
[347559105,1735918233914,-1185.455408,9.319e-05,2]
[347559106,1735918233924,-500.0,9.319e-05,2]
[347559109,1735918233935,-153.754165,9.319e-05,2]
[347559110,1735918233946,-155.826197,9.319e-05,2]
[347559112,1735918233960,-500.0,9.319e-05,2]
[347559114,1735918233970,-779.97,9.319e-05,2]
[347559116,1735918233980,-2102.36,9.319e-05,2]
[347559118,1735918233991,-500.0,9.319e-05,2]
[347559120,1735918234000,-1580.289387,9.319e-05,2]
[347559122,1735918234010,-996.71,9.319e-05,2]
[347559124,1735918234019,-1463.83,9.319e-05,2]
[347559126,1735918234031,-865.73,9.319e-05,2]
[347559128,1735918234040,-1483.39,9.319e-05,2]
[347559130,1735918234050,-608.89,9.319e-05,2]
[347559132,1735918234061,-793.05,9.319e-05,2]
[347559134,1735918234071,-500.0,9.319e-05,2]
[347559136,1735918234080,-1486.35,9.319e-05,2]
[347559138,1735918234089,-500.0,9.319e-05,2]
[347559140,1735918234099,-500.0,9.319e-05,2]
[347559142,1735918234109,-2244.96,9.319e-05,2]
[347559144,1735918234119,-1047.6,9.319e-05,2]
[347559146,1735918234128,-683.35,9.319e-05,2]
[347559148,1735918234138,-500.0,9.319e-05,2]
[347559150,1735918234148,-500.0,9.319e-05,2]
[347559152,1735918234157,-500.0,9.319e-05,2]
[347559154,1735918234167,-500.0,9.319e-05,2]
[347559156,1735918234177,-500.0,9.319e-05,2]
[347559158,1735918234188,-500.0,9.319e-05,2]
[347559159,1735918234198,-847.56,9.319e-05,2]
[347559161,1735918234207,-500.0,9.319e-05,2]
[347559163,1735918234217,-500.0,9.32e-05,2]
[347559165,1735918234227,-500.0,9.32e-05,2]
[347559167,1735918234236,-500.0,9.32e-05,2]
[347559169,1735918234246,-500.0,9.32e-05,2]
[347559170,1735918234255,-500.0,9.32e-05,2]
[347559172,1735918234264,-500.0,9.32e-05,2]
[347559174,1735918234274,-500.0,9.32e-05,2]
[347559176,1735918234284,-500.0,9.32e-05,2]
[347559178,1735918234294,-500.0,9.32e-05,2]
[347559180,1735918234303,-500.0,9.32e-05,2]
[347559182,1735918234313,-500.0,9.32e-05,2]
[347559184,1735918234323,-500.0,9.32e-05,2]
[347559186,1735918234333,-544.52,9.32e-05,2]
[347559188,1735918234343,-519.7,9.32e-05,2]
[347559190,1735918234352,-500.0,9.32e-05,2]
[347559192,1735918234362,-500.0,9.32e-05,2]
[347559194,1735918234372,-500.0,9.32e-05,2]
[347559196,1735918234381,-500.0,9.32e-05,2]
[347559198,1735918234391,-500.0,9.32e-05,2]
[347559200,1735918234402,-500.0,9.32e-05,2]
[347559202,1735918234412,-500.0,9.32e-05,2]
[347559204,1735918234421,-500.0,9.32e-05,2]
[347559206,1735918234432,-246.64272692,9.32e-05,2]
[347559208,1735918234441,-500.0,9.32e-05,2]
[347559210,1735918234450,-500.0,9.32e-05,2]
[347559212,1735918234459,-500.0,9.32e-05,2]
[347559214,1735918234469,-386.54534534,9.32e-05,2]
[347559216,1735918234479,-500.0,9.32e-05,2]
[347559217,1735918234488,-500.0,9.32e-05,2]
[347559219,1735918234498,-500.0,9.32e-05,2]
[347559221,1735918234507,-500.0,9.32e-05,2]
[347559223,1735918234518,-500.0,9.32e-05,2]
[347559225,1735918234527,-500.0,9.32e-05,2]
[347559227,1735918234536,-500.0,9.32e-05,2]
[347559229,1735918234545,-500.0,9.32e-05,2]
[347559231,1735918234555,-500.0,9.32e-05,2]
[347559233,1735918234564,-500.0,9.32e-05,2]
[347559235,1735918234573,-500.0,9.32e-05,2]
[347559237,1735918234583,-500.0,9.32e-05,2]
[347559239,1735918234592,-500.0,9.32e-05,2]
[347559241,1735918234601,-393.13450479,9.32e-05,2]
[347559243,1735918234611,-500.0,9.32e-05,2]
[347559245,1735918234620,-500.0,9.32e-05,2]
[347559247,1735918234629,-500.0,9.32e-05,2]
[347559249,1735918234639,-500.0,9.32e-05,2]
[347559251,1735918234648,-500.0,9.32e-05,2]
[347559253,1735918234658,-500.0,9.32e-05,2]
[347559255,1735918234667,-500.0,9.32e-05,2]
[347559257,1735918234676,-500.0,9.32e-05,2]
[347559259,1735918234687,-500.0,9.32e-05,2]
[347559261,1735918234696,-500.0,9.32e-05,2]
[347559262,1735918234705,-500.0,9.32e-05,2]
[347559264,1735918234715,-2258.59,9.32e-05,2]
[347559266,1735918234724,-500.0,9.32e-05,2]
[347559268,1735918234734,-839.42,9.32e-05,2]
[347559270,1735918234743,-500.0,9.32e-05,2]
[347559272,1735918234754,-500.0,9.32e-05,2]
[347559274,1735918234763,-500.0,9.32e-05,2]
[347559276,1735918234772,-500.0,9.32e-05,2]
[347559278,1735918234781,-500.0,9.32e-05,2]
[347559280,1735918234791,-500.0,9.32e-05,2]
[347559281,1735918234800,-528.72,9.32e-05,2]
[347559283,1735918234809,-500.0,9.32e-05,2]
[347559285,1735918234818,-500.0,9.32e-05,2]
[347559287,1735918234828,-500.0,9.32e-05,2]
[347559290,1735918234838,-1087.8,9.32e-05,2]
[347559293,1735918234859,-648.96,9.32e-05,2]
[347559295,1735918234869,-1061.89,9.32e-05,2]
[347559297,1735918234879,-500.0,9.32e-05,2]
[347559299,1735918234889,-500.0,9.32e-05,2]
[347559301,1735918234898,-500.0,9.32e-05,2]
[347559303,1735918234909,-500.0,9.32e-05,2]
[347559305,1735918234918,-500.0,9.32e-05,2]
[347559307,1735918234928,-500.0,9.32e-05,2]
[347559309,1735918234939,-500.0,9.32e-05,2]
[347559311,1735918234949,-500.0,9.32e-05,2]
[347559313,1735918234963,-814.18,9.32e-05,2]
[347559315,1735918234972,-2251.51,9.32e-05,2]
[347559317,1735918234981,-512.67,9.32e-05,2]
[347559319,1735918234991,-1298.14,9.32e-05,2]
[347559321,1735918235000,-500.0,9.32e-05,2]
[347559322,1735918235010,-500.0,9.32e-05,2]
[347559324,1735918235020,-500.0,9.32e-05,2]
[347559326,1735918235031,-500.0,9.32e-05,2]
[347559328,1735918235041,-500.0,9.32e-05,2]
[347559330,1735918235050,-524.92,9.32e-05,2]
[347559332,1735918235060,-500.0,9.32e-05,2]
[347559334,1735918235073,-500.0,9.32e-05,2]
[347559336,1735918235083,-1069.05,9.32e-05,2]
[347559339,1735918235092,-500.0,9.32e-05,2]
[347559341,1735918235101,-2589.16,9.32e-05,2]
[347559342,1735918235111,-500.0,9.32e-05,2]
[347559344,1735918235120,-500.0,9.32e-05,2]
[347559347,1735918235130,-1303.18,9.32e-05,2]
[347559349,1735918235141,-500.0,9.32e-05,2]
[347559351,1735918235150,-500.0,9.32e-05,2]
[347559353,1735918235159,-500.0,9.32e-05,2]
[347559355,1735918235169,-3343.77,9.32e-05,2]
[347559357,1735918235178,-500.0,9.32e-05,2]
[347559359,1735918235188,-2860.9964,9.321e-05,2]
[347559360,1735918235198,-1000.0,9.355e-05,2]
[347559362,1735918235208,-420.0,9.393e-05,2]
[347559364,1735918235218,-1839.06,9.421e-05,2]
[347559366,1735918235227,-500.0,9.421e-05,2]
[347559369,1735918235237,-727.31,9.423e-05,2]
[347559371,1735918235246,-1168.76,9.423e-05,2]
[347559372,1735918235255,-649.57,9.423e-05,2]
[347559374,1735918235265,-1474.67,9.423e-05,2]
[347559376,1735918235274,-1000.0,9.423e-05,2]
[347559378,1735918235283,-650.53,9.423e-05,2]
[347559380,1735918235293,-512.24,9.423e-05,2]
[347559382,1735918235302,-1964.96,9.423e-05,2]
[347559384,1735918235312,-2321.52,9.423e-05,2]
[347559386,1735918235322,-451.65648071,9.5e-05,2]
[347559388,1735918235331,-500.0,9.522e-05,2]
[347559390,1735918235341,-514.53,9.522e-05,2]
[347559393,1735918235351,-828.97,9.523e-05,2]
[347559395,1735918235360,-329.52198173,9.523e-05,2]
[347559396,1735918235369,-500.0,9.523e-05,2]
[347559399,1735918235379,-541.35036775,9.523e-05,2]
[347559401,1735918235389,-500.0,9.523e-05,2]
[347559403,1735918235398,-500.0,9.523e-05,2]
[347559404,1735918235407,-500.0,9.523e-05,2]
[347559406,1735918235417,-500.0,9.523e-05,2]
[347559408,1735918235426,-500.0,9.523e-05,2]
[347559410,1735918235437,-500.0,9.523e-05,2]
[347559412,1735918235451,-500.0,9.523e-05,2]
[347559414,1735918235460,-500.0,9.523e-05,2]
[347559417,1735918235470,-500.0,9.523e-05,2]
[347559419,1735918235479,-541.66820974,9.523e-05,2]
[347559421,1735918235488,-500.0,9.523e-05,2]
[347559423,1735918235498,-500.0,9.523e-05,2]
[347559425,1735918235507,-500.0,9.523e-05,2]
[347559427,1735918235518,-500.0,9.523e-05,2]
[347559428,1735918235527,-500.0,9.523e-05,2]
[347559430,1735918235536,-500.0,9.523e-05,2]
[347559432,1735918235546,-500.0,9.523e-05,2]
[347559434,1735918235555,-500.0,9.523e-05,2]
[347559436,1735918235564,-214.94401419,9.523e-05,2]
[347559438,1735918235574,-500.0,9.523e-05,2]
[347559441,1735918235584,-500.0,9.523e-05,2]
[347559443,1735918235593,-500.0,9.523e-05,2]
[347559445,1735918235603,-500.0,9.523e-05,2]
[347559447,1735918235612,-483.87906374,9.523e-05,2]
[347559448,1735918235622,-500.0,9.523e-05,2]
[347559450,1735918235632,-500.0,9.523e-05,2]
[347559453,1735918235641,-500.0,9.523e-05,2]
[347559454,1735918235651,-500.0,9.523e-05,2]
[347559456,1735918235660,-812.6,9.523e-05,2]
[347559458,1735918235670,-500.0,9.523e-05,2]
[347559461,1735918235680,-500.0,9.523e-05,2]
[347559463,1735918235692,-500.0,9.523e-05,2]
[347559465,1735918235702,-500.0,9.523e-05,2]
[347559467,1735918235714,-500.0,9.523e-05,2]
[347559469,1735918235724,-545.18,9.523e-05,2]
[347559471,1735918235734,-500.0,9.523e-05,2]
[347559473,1735918235743,-511.27,9.523e-05,2]
[347559475,1735918235753,-500.0,9.523e-05,2]
[347559477,1735918235763,-500.0,9.523e-05,2]
[347559479,1735918235773,-500.0,9.523e-05,2]
[347559481,1735918235783,-500.0,9.523e-05,2]
[347559483,1735918235792,-500.0,9.523e-05,2]
[347559485,1735918235802,-500.0,9.523e-05,2]
[347559487,1735918235811,-500.0,9.523e-05,2]
[347559489,1735918235823,-641.53,9.523e-05,2]
[347559491,1735918235832,-500.0,9.523e-05,2]
[347559493,1735918235842,-500.0,9.523e-05,2]
[347559495,1735918235851,-500.0,9.523e-05,2]
[347559497,1735918235861,-500.0,9.523e-05,2]
[347559499,1735918235870,-500.0,9.523e-05,2]
[347559501,1735918235880,-500.0,9.523e-05,2]
[347559503,1735918235889,-500.0,9.523e-05,2]
[347559505,1735918235899,-500.0,9.523e-05,2]
[347559507,1735918235909,-500.0,9.523e-05,2]
[347559509,1735918235918,-500.0,9.523e-05,2]
[347559511,1735918235928,-548.47,9.523e-05,2]
[347559513,1735918235940,-297.94813251,9.523e-05,2]
[347559515,1735918235951,-500.0,9.523e-05,2]
[347559517,1735918235963,-500.0,9.523e-05,2]
[347559519,1735918235972,-640.43,9.523e-05,2]
[347559521,1735918235981,-500.0,9.523e-05,2]
[347559523,1735918235990,-571.24,9.523e-05,2]
[347559525,1735918236001,-500.0,9.523e-05,2]
[347559527,1735918236011,-500.0,9.523e-05,2]
[347559529,1735918236020,-500.0,9.523e-05,2]
[347559531,1735918236030,-500.0,9.523e-05,2]
[347559533,1735918236040,-500.0,9.523e-05,2]
[347559535,1735918236050,-500.0,9.523e-05,2]
[347559537,1735918236059,-500.0,9.523e-05,2]
[347559539,1735918236069,-500.0,9.523e-05,2]
[347559541,1735918236078,-500.0,9.523e-05,2]
[347559543,1735918236089,-500.0,9.523e-05,2]
[347559545,1735918236098,-500.0,9.523e-05,2]
[347559547,1735918236107,-500.0,9.523e-05,2]
[347559549,1735918236117,-500.0,9.523e-05,2]
[347559551,1735918236126,-500.0,9.523e-05,2]
[347559553,1735918236135,-500.0,9.523e-05,2]
[347559555,1735918236145,-500.0,9.523e-05,2]
[347559557,1735918236154,-500.0,9.523e-05,2]
[347559559,1735918236163,-500.0,9.523e-05,2]
[347559561,1735918236172,-365.25246006,9.523e-05,2]
[347559563,1735918236182,-500.0,9.523e-05,2]
[347559565,1735918236192,-500.0,9.523e-05,2]
[347559567,1735918236202,-500.0,9.523e-05,2]
[347559569,1735918236211,-500.0,9.523e-05,2]
[347559571,1735918236221,-500.0,9.523e-05,2]
[347559573,1735918236230,-500.0,9.523e-05,2]
[347559575,1735918236240,-725.42,9.523e-05,2]
[347559577,1735918236250,-500.0,9.523e-05,2]
[347559579,1735918236259,-500.0,9.523e-05,2]
[347559581,1735918236269,-500.0,9.523e-05,2]
[347559583,1735918236279,-500.0,9.523e-05,2]
[347559585,1735918236289,-500.0,9.523e-05,2]
[347559587,1735918236299,-500.0,9.523e-05,2]
[347559589,1735918236309,-537.63,9.523e-05,2]
[347559591,1735918236318,-500.0,9.523e-05,2]
[347559593,1735918236327,-500.0,9.523e-05,2]
[347559595,1735918236338,-500.0,9.523e-05,2]
[347559597,1735918236347,-500.0,9.523e-05,2]
[347559599,1735918236357,-500.0,9.523e-05,2]
[347559601,1735918236367,-500.0,9.523e-05,2]
[347559603,1735918236376,-500.0,9.523e-05,2]
[347559605,1735918236387,-500.0,9.523e-05,2]
[347559633,1735918236632,-500.0,9.523e-05,2]
[347559635,1735918236642,-500.0,9.523e-05,2]
[347559637,1735918236652,-500.0,9.523e-05,2]
[347559639,1735918236662,-500.0,9.523e-05,2]
[347559641,1735918236672,-500.0,9.523e-05,2]
[347559643,1735918236682,-500.0,9.523e-05,2]
[347559645,1735918236697,-500.41,9.523e-05,2]
[347559647,1735918236712,-500.0,9.523e-05,2]
[347559649,1735918236721,-500.0,9.523e-05,2]
[347559651,1735918236730,-500.0,9.523e-05,2]
[347559653,1735918236740,-500.0,9.523e-05,2]
[347559654,1735918236749,-500.0,9.523e-05,2]
[347559655,1735918236758,-851.15,9.523e-05,2]
[347559656,1735918236767,-500.0,9.523e-05,2]
[347559657,1735918236777,-500.0,9.523e-05,2]
[347559658,1735918236786,-500.0,9.523e-05,2]
[347559659,1735918236795,-498.77204464,9.523e-05,2]
[347559660,1735918236804,-500.0,9.523e-05,2]
[347559661,1735918236814,-558.92,9.523e-05,2]
[347559662,1735918236823,-500.0,9.523e-05,2]
[347559663,1735918236832,-500.0,9.523e-05,2]
[347559664,1735918236841,-500.0,9.523e-05,2]
[347559665,1735918236850,-500.0,9.523e-05,2]
[347559666,1735918236860,-690.43,9.523e-05,2]
[347559667,1735918236869,-219.32401316,9.523e-05,2]
[347559668,1735918236879,-500.0,9.523e-05,2]
[347559670,1735918236888,-500.0,9.523e-05,2]
[347559672,1735918236898,-559.62,9.523e-05,2]
[347559674,1735918236908,-500.0,9.523e-05,2]
[347559676,1735918236917,-500.0,9.523e-05,2]
[347559678,1735918236927,-500.0,9.523e-05,2]
[347559680,1735918236936,-500.0,9.523e-05,2]
[347559682,1735918236945,-500.0,9.523e-05,2]
[347559684,1735918236958,-500.0,9.523e-05,2]
[347559686,1735918236968,-500.0,9.523e-05,2]
[347559688,1735918236977,-500.0,9.523e-05,2]
[347559690,1735918236987,-500.0,9.523e-05,2]
[347559692,1735918236997,-500.0,9.523e-05,2]
[347559694,1735918237006,-500.0,9.523e-05,2]
[347559696,1735918237019,-500.0,9.523e-05,2]
[347559698,1735918237031,-500.0,9.523e-05,2]
[347559700,1735918237041,-546.55990623,9.523e-05,2]
[347559702,1735918237051,-592.76,9.523e-05,2]
[347559704,1735918237060,-500.0,9.523e-05,2]
[347559706,1735918237069,-500.0,9.523e-05,2]
[347559708,1735918237079,-500.0,9.523e-05,2]
[347559710,1735918237088,-500.0,9.523e-05,2]
[347559712,1735918237098,-500.0,9.523e-05,2]
[347559714,1735918237107,-500.0,9.523e-05,2]
[347559716,1735918237117,-500.0,9.523e-05,2]
[347559718,1735918237127,-500.0,9.523e-05,2]
[347559720,1735918237136,-500.0,9.523e-05,2]
[347559722,1735918237145,-1025.43,9.523e-05,2]
[347559724,1735918237155,-1025.43,9.523e-05,2]
[347559726,1735918237164,-500.0,9.523e-05,2]
[347559728,1735918237173,-500.0,9.523e-05,2]
[347559730,1735918237183,-500.0,9.523e-05,2]
[347559732,1735918237201,-500.0,9.523e-05,2]
[347559735,1735918237211,-500.0,9.523e-05,2]
[347559736,1735918237222,-500.0,9.523e-05,2]
[347559737,1735918237231,-500.0,9.523e-05,2]
[347559738,1735918237240,-1195.37,9.523e-05,2]
[347559739,1735918237249,-500.0,9.523e-05,2]
[347559740,1735918237259,-715.84,9.523e-05,2]
[347559741,1735918237268,-500.0,9.523e-05,2]
[347559742,1735918237277,-500.0,9.523e-05,2]
[347559743,1735918237286,-500.0,9.523e-05,2]
[347559744,1735918237297,-563.9,9.523e-05,2]
[347559745,1735918237306,-1689.99,9.523e-05,2]
[347559746,1735918237316,-500.0,9.523e-05,2]
[347559747,1735918237325,-500.0,9.523e-05,2]
[347559748,1735918237335,-500.0,9.523e-05,2]
[347559749,1735918237344,-500.0,9.523e-05,2]
[347559750,1735918237354,-500.0,9.523e-05,2]
[347559751,1735918237364,-681.77,9.523e-05,2]
[347559752,1735918237373,-500.0,9.523e-05,2]
[347559753,1735918237383,-500.0,9.523e-05,2]
[347559754,1735918237392,-500.0,9.523e-05,2]
[347559755,1735918237403,-1082.65,9.523e-05,2]
[347559756,1735918237412,-500.0,9.523e-05,2]
[347559757,1735918237422,-500.0,9.523e-05,2]
[347559758,1735918237432,-608.51248184,9.523e-05,2]
[347559759,1735918237446,-500.0,9.523e-05,2]
[347559760,1735918237455,-500.0,9.523e-05,2]
[347559761,1735918237465,-500.0,9.523e-05,2]
[347559762,1735918237475,-990.76,9.523e-05,2]
[347559763,1735918237484,-500.0,9.523e-05,2]
[347559764,1735918237494,-500.0,9.523e-05,2]
[347559766,1735918237503,-1293.17,9.523e-05,2]
[347559767,1735918237513,-500.0,9.523e-05,2]
[347559768,1735918237523,-711.54,9.523e-05,2]
[347559769,1735918237532,-4429.64,9.523e-05,2]
[347559770,1735918237542,-500.0,9.523e-05,2]
[347559771,1735918237551,-500.0,9.523e-05,2]
[347559772,1735918237561,-500.0,9.523e-05,2]
[347559773,1735918237570,-500.0,9.523e-05,2]
[347559774,1735918237579,-500.0,9.523e-05,2]
[347559775,1735918237588,-1000.0,9.523e-05,2]
[347559776,1735918237598,-500.0,9.524e-05,2]
[347559777,1735918237608,-500.0,9.524e-05,2]
[347559778,1735918237617,-231.26,9.524e-05,2]
[347559779,1735918237626,-500.0,9.524e-05,2]
[347559780,1735918237635,-178.44,9.524e-05,2]
[347559781,1735918237645,-500.0,9.524e-05,2]
[347559782,1735918237655,-500.0,9.524e-05,2]
[347559783,1735918237665,-500.0,9.524e-05,2]
[347559784,1735918237674,-285.64,9.524e-05,2]
[347559785,1735918237683,-500.0,9.524e-05,2]
[347559786,1735918237695,-500.0,9.524e-05,2]
[347559787,1735918237704,-500.0,9.524e-05,2]
[347559788,1735918237714,-500.0,9.524e-05,2]
[347559789,1735918237723,-500.0,9.524e-05,2]
[347559790,1735918237733,-500.0,9.524e-05,2]
[347559791,1735918237743,-500.0,9.524e-05,2]
[347559792,1735918237752,-500.0,9.524e-05,2]
[347559793,1735918237762,-500.0,9.524e-05,2]
[347559794,1735918237771,-500.0,9.524e-05,2]
[347559795,1735918237780,-500.0,9.524e-05,2]
[347559796,1735918237790,-500.0,9.524e-05,2]
[347559797,1735918237800,-500.0,9.524e-05,2]
[347559798,1735918237809,-500.0,9.524e-05,2]
[347559799,1735918237819,-599.15,9.524e-05,2]
[347559800,1735918237828,-500.0,9.524e-05,2]
[347559801,1735918237839,-500.0,9.524e-05,2]
[347559802,1735918237848,-500.0,9.524e-05,2]
[347559803,1735918237858,-559.57,9.524e-05,2]
[347559804,1735918237867,-500.0,9.524e-05,2]
[347559805,1735918237877,-538.32,9.524e-05,2]
[347559806,1735918237886,-500.0,9.524e-05,2]
[347559807,1735918237898,-1126.27,9.524e-05,2]
[347559808,1735918237907,-1522.13,9.524e-05,2]
[347559809,1735918237917,-500.0,9.524e-05,2]
[347559810,1735918237927,-3011.91,9.524e-05,2]
[347559811,1735918237938,-2203.11,9.524e-05,2]
[347559812,1735918237948,-557.13,9.524e-05,2]
[347559813,1735918237961,-1186.59,9.524e-05,2]
[347559814,1735918237970,-1073.02,9.524e-05,2]
[347559815,1735918237980,-185.73,9.527e-05,2]
[347559816,1735918237989,-4253.1459144,9.57e-05,2]
[347559824,1735918238362,-44319.84834202,9.57e-05,2]
[347559826,1735918238373,-1129.15081499,9.57e-05,2]
[347559830,1735918238384,-1943.0607319,9.57e-05,2]
[347559835,1735918238410,-500.0,9.319e-05,2]
[347559837,1735918238419,-919.77800102,9.57e-05,2]
[347559840,1735918238430,-800.0,9.57e-05,2]
[347559846,1735918238482,-500.0,9.524e-05,2]
[347559848,1735918238492,-35.31825867,9.57e-05,2]
[347559852,1735918239574,-2003.75,9.249e-05,2]
[347559853,1735918239583,-599.15,9.249e-05,2]
[347559854,1735918239592,-157.08176557,9.319e-05,2]
[347559855,1735918239602,-2003.75,9.523e-05,2]
[347559856,1735918239611,-599.15,9.523e-05,2]
[347559857,1735918239620,-11637.11823448,9.57e-05,2]
[347559858,1735918239632,-4665.36990252,9.57e-05,2]
[347559859,1735918239642,-8134.45,9.589e-05,2]
[347559860,1735918239651,-532.55,9.593e-05,2]
[347559861,1735918239662,-500.0,9.593e-05,2]
[347559862,1735918239671,-500.0,9.593e-05,2]
[347559863,1735918239681,-1141.48,9.593e-05,2]
[347559864,1735918239693,-521.33,9.593e-05,2]
[347559865,1735918239704,-500.0,9.593e-05,2]
[347559866,1735918239713,-500.0,9.593e-05,2]
[347559867,1735918239723,-694.12,9.593e-05,2]
[347559868,1735918239732,-1910.70009748,9.593e-05,2]
[347559869,1735918239813,-78.79990252,9.593e-05,2]
[347559870,1735918239823,-500.0,9.593e-05,2]
[347559871,1735918239832,-348.97224321,9.593e-05,2]
[347559872,1735918239844,-912.63775679,9.593e-05,2]
[347559873,1735918239853,-78.32348161,9.593e-05,2]
[347559874,1735918239878,-885.7656713,9.593e-05,2]
[347559875,1735918239889,-1072.84084709,9.593e-05,2]
[347559876,1735918239899,-707.35,9.593e-05,2]
[347559877,1735918239909,-965.65,9.593e-05,2]
[347559878,1735918239918,-1012.96,9.593e-05,2]
[347559879,1735918239927,-919.1450453,9.593e-05,2]
[347559880,1735918239942,-2753.0349547,9.593e-05,2]
[347559881,1735918239956,-787.91,9.593e-05,2]
[347559882,1735918239965,-500.0,9.593e-05,2]
[347559883,1735918239975,-1185.455408,9.593e-05,2]
[347559884,1735918239984,-500.0,9.593e-05,2]
[347559885,1735918239995,-500.0,9.593e-05,2]
[347559886,1735918240004,-779.97,9.593e-05,2]
[347559887,1735918240014,-2102.36,9.593e-05,2]
[347559888,1735918240023,-500.0,9.593e-05,2]
[347559889,1735918240033,-1580.289387,9.593e-05,2]
[347559890,1735918240043,-996.71,9.593e-05,2]
[347559892,1735918240052,-1463.83,9.593e-05,2]
[347559894,1735918240062,-865.73,9.593e-05,2]
[347559896,1735918240071,-1483.39,9.593e-05,2]
[347559898,1735918240080,-608.89,9.593e-05,2]
[347559900,1735918240089,-793.05,9.593e-05,2]
[347559902,1735918240098,-1486.35,9.593e-05,2]
[347559904,1735918240107,-500.0,9.593e-05,2]
[347559906,1735918240116,-82.43025032,9.593e-05,2]
[347559907,1735918240127,-417.56974968,9.593e-05,2]
[347559909,1735918240137,-500.0,9.593e-05,2]
[347559911,1735918240146,-310.16423406,9.593e-05,2]
[347559912,1735918240653,-500.0,9.249e-05,2]
[347559913,1735918240663,-500.0,9.523e-05,2]
[347559914,1735918240672,-1934.79576594,9.593e-05,2]
[347559915,1735918240681,-1047.6,9.593e-05,2]
[347559916,1735918240692,-683.35,9.593e-05,2]
[347559917,1735918240702,-500.0,9.593e-05,2]
[347559918,1735918240711,-292.22,9.593e-05,2]